fUSD/lending_fUSD_20240519
["ID","MTS","AMOUNT","RATE_DAILY","PERIOD"]
[327453399,1716078707090,-2176.0,0.0003041,2]
[327453400,1716078707100,-1878.81,0.0003041,2]
[327453401,1716078707109,-2585.42,0.0003041,2]
[327453402,1716078707119,-417.967568,0.0003041,7]
[327453403,1716078707129,-3682.41,0.0003041,2]
[327453404,1716078707138,-1679.77,0.0003041,2]
[327453405,1716078707148,-738.69,0.0003041,2]
[327453406,1716078707158,-500.0,0.0003041,2]
[327453407,1716078707168,-2986.43,0.0003041,2]
[327453408,1716078707177,-500.0,0.0003041,2]
[327453409,1716078707187,-4242.79,0.0003041,2]
[327453410,1716078707197,-500.0,0.0003041,2]
[327453411,1716078707207,-3057.4,0.0003041,2]
[327453412,1716078707216,-1055.1,0.0003041,2]
[327453413,1716078707226,-5880.85,0.0003041,2]
[327453414,1716078707236,-1361.72,0.0003041,2]
[327453415,1716078707246,-2275.09,0.0003041,2]
[327453416,1716078707255,-567.25,0.0003041,2]
[327453417,1716078707265,-1546.63,0.0003041,2]
[327453418,1716078707274,-2234.1,0.0003041,2]
[327453419,1716078707284,-2444.03,0.0003041,2]
[327453420,1716078707296,-500.0,0.0003041,2]
[327453421,1716078707305,-629.55,0.0003041,2]
[327453422,1716078707315,-500.0,0.0003041,2]
[327453423,1716078707325,-631.01,0.0003041,2]
[327453424,1716078707334,-1214.83,0.0003041,2]
[327453425,1716078707471,-751.01,0.0003041,2]
[327453426,1716078707491,-500.0,0.0003041,2]
[327453427,1716078707501,-1907.53,0.0003041,2]
[327453428,1716078707511,-2098.31,0.0003041,2]
[327453429,1716078707520,-823.01,0.0003041,2]
[327453430,1716078707530,-1155.69,0.0003041,2]
[327453431,1716078707539,-443.90868077,0.0003041,2]
[327453432,1716078707549,-598.87,0.0003041,2]
[327453433,1716078707558,-553.76,0.0003041,2]
[327453434,1716078707568,-513.61,0.0003041,2]
[327453435,1716078707578,-2141.74,0.0003041,2]
[327453436,1716078707588,-916.74,0.0003041,2]
[327453437,1716078707597,-971.82,0.0003041,2]
[327453438,1716078707606,-2760.5,0.0003041,2]
[327453439,1716078707615,-1119.54,0.0003041,2]
[327453440,1716078707625,-500.0,0.0003041,2]
[327453441,1716078707635,-2356.22,0.0003041,2]
[327453442,1716078707644,-157.051907,0.00030448,30]
[327453443,1716078707653,-165.288311,0.00030507,2]
[327453444,1716078707663,-2427.230616,0.00030507,2]
[327453445,1716078707672,-824.935677,0.00030507,2]
[327453446,1716078707682,-4339.72535439,0.00030507,2]
[327453447,1716078708090,-500.0,0.00029863,2]
[327453448,1716078708100,-851.74725261,0.00030507,2]
[327453449,1716078708111,-155.0,0.00030544,4]
[327453450,1716078708121,-415.26,0.00030553,2]
[327453451,1716078708130,-836.10627233,0.00030584,2]
[327453452,1716078708142,-2032.2,0.00030584,2]
[327453454,1716078883511,-1034.98517873,0.00011667,2]
[327453455,1716078883533,-155.0,0.00012998,2]
[327453456,1716078883554,-499.70242659,0.00012999,2]
[327453457,1716078883575,-18310.31239468,0.00013,2]
[327453461,1716079611853,-150.0,0.0001094,2]
[327453462,1716079627378,-12.56418292,0.0001094,2]
[327453463,1716079627399,-137.43581708,0.00010941,2]
[327453464,1716079628289,-150.0,0.00010941,2]
[327453465,1716079629373,-150.0,0.00010941,2]
[327453466,1716079640492,-150.0,0.0001094,2]
[327453467,1716079640979,-150.0,0.0001094,2]
[327453468,1716079641390,-150.0,0.0001094,2]
[327453469,1716079815207,-150.0,0.00010939,2]
[327453470,1716079816872,-150.0,0.00010939,2]
[327453471,1716079817800,-150.0,0.00010938,2]
[327453472,1716079818477,-150.0,0.00010938,2]
[327453477,1716079831525,-2603.71306986,0.00010938,2]
[327453479,1716079831537,-779.78744094,0.00010938,2]
[327453482,1716079831549,-1037.08295783,0.00010938,2]
[327453484,1716079831560,-5737.5,0.00010938,2]
[327453485,1716079831572,-66.12113436,0.00010938,2]
[327453486,1716079831581,-87.94793254,0.0001094,2]
[327453487,1716079831590,-525.71408206,0.00010958,2]
[327453488,1716079831600,-170.73,0.00010959,2]
[327453489,1716079831609,-150.0,0.00011168,2]
[327453490,1716079831618,-4411.60935003,0.0001117,2]
[327453491,1716079831628,-181.49625513,0.0001117,2]
[327453492,1716079831637,-324.50794331,0.00011178,2]
[327453493,1716079831647,-488.3397664,0.00011178,2]
[327453494,1716079831658,-326.40225063,0.00011178,2]
[327453495,1716079831667,-405.63530923,0.00011178,2]
[327453496,1716079831677,-139.94936027,0.00011178,2]
[327453497,1716079831689,-779.28,0.00011178,2]
[327453498,1716079831701,-329.03924891,0.00011178,2]
[327453499,1716079831710,-271.88630486,0.00011178,2]
[327453500,1716079831719,-259.16954115,0.00011178,2]
[327453501,1716079831728,-4738.2243308,0.00011179,2]
[327453502,1716079831738,-1071.84695952,0.00011179,3]
[327453503,1716079831747,-2164.60901473,0.00011179,2]
[327453504,1716079831757,-3106.55082676,0.0001118,2]
[327453505,1716079831768,-417.27522362,0.0001118,2]
[327453506,1716079831783,-611.8,0.0001118,2]
[327453507,1716079831815,-5380.79283856,0.0001118,2]
[327453508,1716079831826,-220331.60641507,0.0001118,2]
[327453509,1716079831838,-4047.62830917,0.0001118,2]
[327453510,1716079831855,-1451.45000021,0.0001118,2]
[327453511,1716079831866,-427.34999358,0.0001118,2]
[327453512,1716079831877,-367.39999985,0.0001118,2]
[327453513,1716079831892,-490.0,0.0001118,2]
[327453514,1716079831904,-423.02988,0.0001118,2]
[327453515,1716079831915,-378.73,0.0001118,2]
[327453516,1716079831928,-1962.53935742,0.0001118,2]
[327453517,1716079831941,-2028.18558295,0.0001118,2]
[327453518,1716079832259,-404.4999995,0.0001118,2]
[327453519,1716079832336,-363.76455997,0.0001118,2]
[327453520,1716079832348,-316.5,0.0001118,2]
[327453521,1716079832360,-6541.10183312,0.0001118,2]
[327453522,1716079832371,-661.70338832,0.0001118,2]
[327453523,1716079832383,-460893.69487616,0.0001118,2]
[327453524,1716079832393,-193.17496519,0.000116,2]
[327453525,1716079832402,-176.22158104,0.000117,2]
[327453526,1716079832411,-2588.9,0.00011924,2]
[327453527,1716079832421,-15010.42820441,0.00012,2]
[327453529,1716079832430,-299.99,0.00012,2]
[327453530,1716079832439,-300.0,0.00012,2]
[327453532,1716079832449,-10935.71301561,0.000124,2]
[327453534,1716079832458,-151.15,0.00012466,2]
[327453536,1716079832468,-2000.0,0.00012677,3]
[327453538,1716079832478,-366.43,0.00012766,2]
[327453540,1716079832487,-1098.77,0.00012766,2]
[327453542,1716079832496,-252.30363368,0.00012868,2]
[327453543,1716079832506,-150.99,0.00012868,2]
[327453544,1716079832515,-158.04094423,0.000129,2]
[327453545,1716079832524,-191.4794949,0.000129,2]
[327453547,1716079832534,-196.89576948,0.000129,2]
[327453548,1716079832543,-5511.44306346,0.000129,2]
[327453550,1716079832552,-1137.41043861,0.000129,2]
[327453552,1716079832562,-193.17496518,0.000129,2]
[327453554,1716079832572,-2452.202362,0.00012957,2]
[327453556,1716079832581,-3041.59142098,0.00012986,2]
[327453558,1716079832590,-227.12,0.00012994,2]
[327453561,1716079832600,-1000.0,0.00012998,2]
[327453563,1716079832610,-801.85633091,0.00012998,2]
[327453565,1716079832619,-403.53925465,0.00012998,2]
[327453567,1716079832628,-362.2253787,0.00012998,2]
[327453569,1716079832639,-156.58353072,0.00012998,2]
[327453571,1716079832648,-155.83091661,0.00012998,2]
[327453572,1716079832658,-204.44716233,0.00012998,2]
[327453573,1716079832667,-493.20336237,0.00012998,2]
[327453574,1716079832676,-527.04937464,0.00012998,2]
[327453575,1716079832685,-441.10469184,0.00012998,2]
[327453576,1716079832695,-2711.61305631,0.00012998,2]
[327453577,1716079832704,-652.52149548,0.00012999,2]
[327453578,1716079832713,-5000.0,0.00012999,2]
[327453579,1716079832722,-12840.71099087,0.00012999,2]
[327453580,1716079832734,-6349.31168983,0.00012999,2]
[327453581,1716079832745,-434.9101146,0.00012999,2]
[327453582,1716079832755,-65426.88371138,0.00013,2]
[327453583,1716079832773,-7244.98197519,0.00013,2]
[327453588,1716079837681,-1650.0,0.00010937,2]
[327453589,1716079837692,-3447.3894015,0.00013,2]
[327453590,1716079837809,-416919.4471374,0.00013,2]
[327453591,1716079837818,-178.43832793,0.00013,2]
[327453592,1716079837827,-201383.44886283,0.00013,2]
[327453593,1716079837836,-151.15,0.00013116,2]
[327453594,1716079837849,-23900.0,0.00013583,2]
[327453595,1716079837859,-170.54,0.00013592,2]
[327453596,1716079837868,-1798.54,0.00013699,2]
[327453597,1716079837878,-180.0,0.00013705,2]
[327453598,1716079837887,-250.0,0.00013767,2]
[327453599,1716079837897,-156.64,0.00013973,2]
[327453600,1716079837907,-400.0,0.00014174,2]
[327453601,1716079837916,-1137.41043856,0.00014476,2]
[327453602,1716079837926,-10000.0,0.0001457,2]
[327453603,1716079837935,-227.12,0.00014618,2]
[327453604,1716079837945,-2588.9,0.00014664,2]
[327453605,1716079837955,-169.7,0.00014668,2]
[327453606,1716079837964,-5511.44306344,0.00014757,2]
[327453607,1716079837974,-400.0,0.00015946,2]
[327453608,1716079837984,-227.12,0.00016242,2]
[327453609,1716079837994,-170.54,0.00016477,2]
[327453610,1716079838004,-5511.44306344,0.00016613,2]
[327453611,1716079838013,-1137.41043856,0.00017252,2]
[327453614,1716079838023,-2588.9,0.00017403,2]
[327453615,1716079838034,-400.0,0.00017718,2]
[327453617,1716079838043,-227.12,0.00017866,2]
[327453619,1716079838053,-5511.44306344,0.0001847,2]
[327453620,1716079838062,-152.71,0.00018924,2]
[327453622,1716079838071,-152.71,0.00018936,2]
[327453623,1716079838081,-152.71,0.00018948,2]
[327453624,1716079838090,-152.71,0.0001896,2]
[327453625,1716079838100,-152.71,0.00018972,2]
[327453626,1716079838109,-152.71,0.00018984,2]
[327453627,1716079838119,-152.71,0.00018995,2]
[327453628,1716079838129,-152.71,0.00019007,2]
[327453629,1716079838138,-152.71,0.00019019,2]
[327453630,1716079838148,-1798.54,0.00019178,2]
[327453631,1716079838158,-400.0,0.0001949,2]
[327453632,1716079838168,-227.12,0.0001949,2]
[327453633,1716079838178,-2000.0,0.0002,15]
[327453634,1716079838188,-1137.41043856,0.00020028,2]
[327453635,1716079838197,-5511.44306344,0.00020327,2]
[327453636,1716079838207,-400.0,0.00021261,2]
[327453637,1716079838217,-169.7,0.00022002,2]
[327453638,1716079838227,-5511.44306344,0.00022184,2]
[327453639,1716079838237,-1137.41043856,0.00022804,2]
[327453640,1716079838246,-772.88,0.00023243,2]
[327453641,1716079838256,-5511.44306344,0.0002404,2]
[327453642,1716079838265,-9215.75890196,0.00024645,2]
[327453643,1716079838275,-250.0,0.00024658,2]
[327453644,1716079838285,-26616.60747465,0.00024885,2]
[327453645,1716079838295,-306.07960804,0.00024889,2]
[327453646,1716079838304,-306.079608,0.00024889,2]
[327453647,1716079838315,-306.079608,0.00024889,2]
[327453648,1716079838325,-306.079608,0.00024889,2]
[327453649,1716079838335,-306.079608,0.00024889,2]
[327453650,1716079838345,-306.079608,0.00024889,2]
[327453651,1716079838354,-20253.71061966,0.00024898,2]
[327453652,1716079838364,-20253.71061961,0.00024898,2]
[327453653,1716079838373,-20253.71061961,0.00024898,2]
[327453654,1716079838383,-20253.71061961,0.00024898,2]
[327453655,1716079838392,-20253.71061961,0.00024898,2]
[327453656,1716079838402,-20253.71061961,0.00024898,2]
[327453657,1716079838412,-273.0,0.0002496,15]
[327453658,1716079838421,-337.0,0.0002496,15]
[327453659,1716079838431,-214.08,0.0002497,15]
[327453660,1716079838441,-273.0,0.0002497,15]
[327453661,1716079838451,-337.0,0.0002497,15]
[327453662,1716079838460,-150.5,0.0002498,15]
[327453663,1716079838471,-273.0,0.0002498,15]
[327453664,1716079838480,-337.0,0.0002498,15]
[327453665,1716079838490,-20253.71061961,0.00024987,2]
[327453666,1716079838500,-306.079608,0.00024987,2]
[327453667,1716079838512,-416498.453229,0.0002499,7]
[327453668,1716079838521,-1137.41043856,0.0002558,2]
[327453669,1716079838531,-5511.44306344,0.00025897,2]
[327453670,1716079838542,-157.051909,0.00026148,10]
[327453671,1716079838552,-772.88,0.00026149,2]
[327453672,1716079838562,-157.051909,0.00026248,14]
[327453673,1716079838572,-157.051909,0.00026348,10]
[327453674,1716079838582,-157.051909,0.00026448,14]
[327453675,1716079838592,-157.051909,0.00026548,14]
[327453676,1716079838602,-169.18,0.00026585,2]
[327453677,1716079838611,-2159.0,0.00026635,2]
[327453678,1716079838621,-973.0,0.00026635,2]
[327453679,1716079838631,-659.265,0.00026635,2]
[327453680,1716079838640,-1790.0,0.00026635,2]
[327453681,1716079838650,-1225.0,0.00026635,2]
[327453682,1716079838659,-1261.0,0.00026635,2]
[327453683,1716079838669,-721.505,0.00026635,2]
[327453684,1716079838678,-439.0,0.00026635,2]
[327453685,1716079838688,-812.0,0.00026635,2]
[327453686,1716079838698,-239.268,0.00026635,2]
[327453687,1716079838707,-444.0,0.00026635,2]
[327453688,1716079838717,-1977.0,0.00026635,2]
[327453689,1716079838726,-204.723,0.00026635,2]
[327453690,1716079838736,-246.382,0.00026635,2]
[327453691,1716079838746,-299.771,0.00026635,2]
[327453692,1716079838755,-1647.0,0.00026635,2]
[327453693,1716079838766,-3159.0,0.00026635,2]
[327453694,1716079838775,-223.0,0.00026635,2]
[327453695,1716079838785,-1140.0,0.00026635,2]
[327453696,1716079838794,-5754.0,0.00026635,2]
[327453697,1716079838804,-252.476,0.00026635,2]
[327453698,1716079838814,-161.0,0.00026635,2]
[327453699,1716079838823,-193.658,0.00026635,2]
[327453700,1716079838833,-161.51,0.00026635,2]
[327453701,1716079838844,-210.0,0.00026635,2]
[327453702,1716079838855,-1464.0,0.00026635,2]
[327453703,1716079838864,-289.0,0.00026635,2]
[327453704,1716079838873,-258.242,0.00026635,2]
[327453705,1716079838882,-194.448,0.00026635,2]
[327453706,1716079838892,-258.0,0.00026635,2]
[327453707,1716079838901,-5915.0,0.00026635,2]
[327453708,1716079838911,-200.0,0.00026635,2]
[327453709,1716079838920,-273.251,0.00026635,2]
[327453710,1716079838931,-37862.0,0.00026635,2]
[327453711,1716079838941,-152.0,0.00026635,2]
[327453712,1716079838950,-151.964,0.00026635,2]
[327453713,1716079838960,-235.2,0.00026635,2]
[327453714,1716079838970,-283.252,0.00026635,2]
[327453715,1716079838980,-1102.0,0.00026635,2]
[327453716,1716079838991,-150.0,0.00026635,2]
[327453717,1716079839000,-157.051909,0.00026748,14]
[327453718,1716079839010,-157.051909,0.00027148,18]
[327453719,1716079839020,-20253.71061961,0.00027184,2]
[327453720,1716079839030,-306.079608,0.00027184,2]
[327453721,1716079839040,-155.0,0.00027215,2]
[327453722,1716079839049,-157.051909,0.00027248,24]
[327453723,1716079839059,-1000.0,0.00027288,2]
[327453724,1716079839069,-74352.6419,0.00027297,2]
[327453725,1716079839078,-886.19474672,0.00027297,2]
[327453726,1716079839088,-265.58701924,0.00027297,2]
[327453727,1716079839098,-157.051909,0.00027348,10]
[327453728,1716079839108,-298.1070515,0.00027395,2]
[327453729,1716079839118,-1676983.86014592,0.00027395,4]
[327453730,1716079839131,-438.29,0.00027395,4]
[327453744,1716079839707,-1489.98628371,0.00027395,4]
[327453747,1716079839720,-278.13525569,0.00027395,4]
[327453749,1716079839732,-474.95316478,0.00027395,4]
[327453760,1716079839857,-1911108.51933818,0.00027395,4]
[327453761,1716079839868,-500.0,0.00027397,2]
[327453763,1716079839879,-500.0,0.00027397,2]
[327453765,1716079839889,-500.0,0.00027397,2]
[327453767,1716079839900,-500.0,0.00027397,2]
[327453769,1716079839910,-500.0,0.00027397,2]
[327453771,1716079839920,-500.0,0.00027397,2]
[327453773,1716079839935,-500.0,0.00027397,2]
[327453775,1716079839945,-500.0,0.00027397,2]
[327453777,1716079839955,-500.0,0.00027397,2]
[327453779,1716079839964,-500.0,0.00027397,2]
[327453780,1716079839974,-500.0,0.00027397,2]
[327453781,1716079839983,-500.0,0.00027397,2]
[327453782,1716079839993,-500.0,0.00027397,2]
[327453783,1716079840003,-500.0,0.00027397,2]
[327453784,1716079840013,-500.0,0.00027397,2]
[327453785,1716079840022,-500.0,0.00027397,2]
[327453787,1716079840032,-500.0,0.00027397,2]
[327453789,1716079840042,-500.0,0.00027397,2]
[327453790,1716079840052,-500.0,0.00027397,2]
[327453791,1716079840061,-500.0,0.00027397,2]
[327453792,1716079840071,-500.0,0.00027397,2]
[327453793,1716079840083,-500.0,0.00027397,2]
[327453794,1716079840092,-500.0,0.00027397,2]
[327453795,1716079840102,-500.0,0.00027397,2]
[327453796,1716079840112,-500.0,0.00027397,2]
[327453797,1716079840122,-500.0,0.00027397,2]
[327453798,1716079840132,-500.0,0.00027397,2]
[327453799,1716079840142,-500.0,0.00027397,2]
[327453800,1716079840154,-500.0,0.00027397,2]
[327453801,1716079840164,-694.12,0.00027397,2]
[327453802,1716079840175,-500.0,0.00027397,2]
[327453803,1716079840185,-500.0,0.00027397,2]
[327453804,1716079840195,-500.0,0.00027397,2]
[327453806,1716079840206,-513.69309795,0.00027397,2]
[327453808,1716079840216,-262.05626811,0.00027397,2]
[327453810,1716079840225,-500.0,0.00027397,2]
[327453812,1716079840235,-500.0,0.00027397,2]
[327453814,1716079840245,-500.0,0.00027397,2]
[327453816,1716079840255,-500.0,0.00027397,2]
[327453818,1716079840266,-500.0,0.00027397,2]
[327453820,1716079840278,-500.0,0.00027397,2]
[327453822,1716079840288,-500.0,0.00027397,2]
[327453824,1716079840298,-500.0,0.00027397,2]
[327453827,1716079840309,-500.0,0.00027397,2]
[327453830,1716079840319,-500.0,0.00027397,2]
[327453833,1716079840328,-500.0,0.00027397,2]
[327453836,1716079840339,-500.0,0.00027397,2]
[327453838,1716079840349,-500.0,0.00027397,2]
[327453840,1716079840359,-500.0,0.00027397,2]
[327453842,1716079840369,-500.0,0.00027397,2]
[327453844,1716079840379,-500.0,0.00027397,2]
[327453846,1716079840389,-500.0,0.00027397,2]
[327453848,1716079840398,-500.0,0.00027397,2]
[327453850,1716079840408,-500.0,0.00027397,2]
[327453852,1716079840419,-500.0,0.00027397,2]
[327453853,1716079840428,-512.48120065,0.00027397,2]
[327453854,1716079840438,-500.0,0.00027397,2]
[327453855,1716079840448,-500.0,0.00027397,2]
[327453856,1716079840458,-500.0,0.00027397,2]
[327453857,1716079840468,-500.0,0.00027397,2]
[327453858,1716079840478,-500.0,0.00027397,2]
[327453859,1716079840488,-500.0,0.00027397,2]
[327453860,1716079840498,-500.0,0.00027397,2]
[327453861,1716079840508,-500.0,0.00027397,2]
[327453862,1716079840518,-500.0,0.00027397,2]
[327453863,1716079840527,-500.0,0.00027397,2]
[327453864,1716079840537,-500.0,0.00027397,2]
[327453865,1716079840547,-566.02,0.00027397,2]
[327453866,1716079840557,-500.0,0.00027397,2]
[327453867,1716079840568,-500.0,0.00027397,2]
[327453868,1716079840578,-500.0,0.00027397,2]
[327453869,1716079840587,-500.0,0.00027397,2]
[327453870,1716079840597,-500.0,0.00027397,2]
[327453871,1716079840608,-500.0,0.00027397,2]
[327453872,1716079840618,-500.0,0.00027397,2]
[327453873,1716079840628,-500.0,0.00027397,2]
[327453874,1716079840638,-500.0,0.00027397,2]
[327453875,1716079840648,-500.0,0.00027397,2]
[327453876,1716079840658,-500.0,0.00027397,2]
[327453877,1716079840668,-513.05178757,0.00027397,2]
[327453878,1716079840678,-500.0,0.00027397,2]
[327453879,1716079840688,-608.41,0.00027397,2]
[327453880,1716079840699,-500.0,0.00027397,2]
[327453881,1716079840710,-500.0,0.00027397,2]
[327453882,1716079840960,-500.0,0.00027397,2]
[327453883,1716079840980,-504.94892508,0.00027397,2]
[327453884,1716079840991,-1131.97,0.00027397,2]
[327453885,1716079841000,-500.0,0.00027397,2]
[327453886,1716079841010,-500.0,0.00027397,2]
[327453887,1716079841019,-500.0,0.00027397,2]
[327453888,1716079841029,-500.0,0.00027397,2]
[327453889,1716079841038,-500.0,0.00027397,2]
[327453890,1716079841048,-500.0,0.00027397,2]
[327453891,1716079841057,-500.0,0.00027397,2]
[327453892,1716079841066,-500.0,0.00027397,2]
[327453893,1716079841076,-503.95358985,0.00027397,2]
[327453894,1716079841086,-500.0,0.00027397,2]
[327453895,1716079841095,-500.0,0.00027397,2]
[327453896,1716079841104,-151.0,0.00027397,7]
[327453897,1716079841114,-500.0,0.00027397,2]
[327453898,1716079841123,-500.0,0.00027397,2]
[327453899,1716079841132,-500.0,0.00027397,2]
[327453900,1716079841141,-216.75313844,0.00027397,2]
[327453901,1716079841150,-648.89,0.00027397,2]
[327453902,1716079841160,-500.0,0.00027397,2]
[327453903,1716079841169,-151.0,0.00027397,7]
[327453904,1716079841178,-579.57,0.00027397,2]
[327453905,1716079841187,-500.0,0.00027397,2]
[327453906,1716079841197,-500.0,0.00027397,2]
[327453907,1716079841206,-500.0,0.00027397,2]
[327453908,1716079841216,-500.0,0.00027397,2]
[327453909,1716079841226,-500.0,0.00027397,2]
[327453910,1716079841236,-154.154342,0.00027397,7]
[327453911,1716079841245,-151.0,0.00027397,7]
[327453912,1716079841255,-500.0,0.00027397,2]
[327453913,1716079841264,-500.0,0.00027397,2]
[327453914,1716079841274,-500.0,0.00027397,2]
[327453915,1716079841283,-500.0,0.00027397,2]
[327453916,1716079841293,-500.0,0.00027397,2]
[327453917,1716079841302,-500.0,0.00027397,2]
[327453918,1716079841312,-533.85108412,0.00027397,2]
[327453919,1716079841321,-500.0,0.00027397,2]
[327453920,1716079841330,-500.0,0.00027397,2]
[327453921,1716079841339,-500.0,0.00027397,2]
[327453922,1716079841348,-500.0,0.00027397,2]
[327453923,1716079841358,-500.0,0.00027397,2]
[327453924,1716079841367,-500.0,0.00027397,2]
[327453925,1716079841376,-500.0,0.00027397,2]
[327453926,1716079841386,-500.0,0.00027397,2]
[327453927,1716079841395,-151.0,0.00027397,7]
[327453928,1716079841405,-500.0,0.00027397,2]
[327453929,1716079841414,-500.0,0.00027397,2]
[327453930,1716079841424,-500.0,0.00027397,2]
[327453931,1716079841433,-500.0,0.00027397,2]
[327453932,1716079841443,-151.0,0.00027397,7]
[327453933,1716079841452,-500.0,0.00027397,2]
[327453934,1716079841461,-500.0,0.00027397,2]
[327453935,1716079841471,-500.0,0.00027397,2]
[327453936,1716079841480,-500.0,0.00027397,2]
[327453937,1716079841491,-500.0,0.00027397,2]
[327453938,1716079841501,-500.0,0.00027397,2]
[327453939,1716079841510,-500.0,0.00027397,2]
[327453940,1716079841520,-500.0,0.00027397,2]
[327453941,1716079841530,-500.0,0.00027397,2]
[327453942,1716079841540,-500.0,0.00027397,2]
[327453943,1716079841550,-500.0,0.00027397,2]
[327453944,1716079841561,-500.0,0.00027397,2]
[327453945,1716079841570,-500.09,0.00027397,2]
[327453946,1716079841580,-500.0,0.00027397,2]
[327453947,1716079841589,-500.0,0.00027397,2]
[327453948,1716079841599,-151.0,0.00027397,7]
[327453949,1716079841608,-500.0,0.00027397,2]
[327453950,1716079841617,-500.0,0.00027397,2]
[327453951,1716079841627,-873.62,0.00027397,2]
[327453952,1716079841636,-500.0,0.00027397,2]
[327453953,1716079841645,-500.0,0.00027397,2]
[327453954,1716079841654,-500.0,0.00027397,2]
[327453955,1716079841663,-500.0,0.00027397,2]
[327453956,1716079841672,-500.0,0.00027397,2]
[327453957,1716079841682,-500.0,0.00027397,2]
[327453958,1716079841691,-500.0,0.00027397,2]
[327453959,1716079841702,-500.0,0.00027397,2]
[327453960,1716079841711,-500.0,0.00027397,2]
[327453961,1716079841721,-500.0,0.00027397,2]
[327453962,1716079841730,-500.0,0.00027397,2]
[327453963,1716079841740,-500.0,0.00027397,2]
[327453964,1716079841750,-500.0,0.00027397,2]
[327453965,1716079841759,-500.0,0.00027397,2]
[327453966,1716079841769,-176.063461,0.00027397,7]
[327453967,1716079841778,-500.0,0.00027397,2]
[327453968,1716079841787,-151.0,0.00027397,7]
[327453969,1716079841797,-176.063461,0.00027397,7]
[327453970,1716079841806,-500.0,0.00027397,2]
[327453971,1716079841816,-500.0,0.00027397,2]
[327453972,1716079841825,-500.0,0.00027397,2]
[327453973,1716079841835,-227.687287,0.00027397,7]
[327453974,1716079841846,-500.0,0.00027397,2]
[327453975,1716079841857,-500.0,0.00027397,2]
[327453976,1716079841867,-500.0,0.00027397,2]
[327453977,1716079841877,-648.09,0.00027397,2]
[327453978,1716079841888,-523.3,0.00027397,2]
[327453979,1716079841897,-500.0,0.00027397,2]
[327453980,1716079841908,-278.642658,0.00027397,7]
[327453981,1716079841919,-500.0,0.00027397,2]
[327453982,1716079841929,-500.0,0.00027397,2]
[327453983,1716079841940,-500.0,0.00027397,2]
[327453984,1716079841949,-500.0,0.00027397,2]
[327453985,1716079841959,-500.0,0.00027397,2]
[327453986,1716079841968,-278.642658,0.00027397,7]
[327453987,1716079841977,-500.0,0.00027397,2]
[327453988,1716079841986,-801.03,0.00027397,2]
[327453989,1716079841996,-500.0,0.00027397,2]
[327453990,1716079842006,-558.63,0.00027397,2]
[327453991,1716079842015,-500.0,0.00027397,2]
[327453992,1716079842025,-799.77,0.00027397,2]
[327453993,1716079842035,-507.19131082,0.00027397,2]
[327453994,1716079842044,-591.98,0.00027397,2]
[327453995,1716079842053,-500.0,0.00027397,2]
[327453996,1716079842062,-500.0,0.00027397,2]
[327453997,1716079842072,-500.0,0.00027397,2]
[327453998,1716079842081,-500.0,0.00027397,2]
[327453999,1716079842091,-892.31,0.00027397,2]
[327454000,1716079842100,-522.04687139,0.00027397,2]
[327454001,1716079842109,-500.0,0.00027397,2]
[327454002,1716079842119,-500.0,0.00027397,2]